[Event "Budapest One Week IM-A 03-2025"]
[Site "Budapest"]
[Date "2025.03.18"]
[Round "2.1"]
[White "Turzo, Attila"]
[Black "Chakrabarty, Reyaansh"]
[Result "1/2-1/2"]
[Annotator "TA"]
[ECO "D02"]
[WhiteElo "2272"]
[BlackElo "2181"]
[PlyCount "120"]
[EventDate "2025.03.17"]
[EventType "tourn"]
[EventCountry "HUN"]
[SourceTitle "playchess.com"]
[Source "ChessBase"]
[SourceQuality "1"]
[TimeControl "5400+30"]

{[%evp 16,120,8,12,21,20,0,0,43,43,72,52,50,54,63,38,54,45,58,55,119,59,60,51,63,62,65,51,114,58,80,89,86,60,82,77,78,77,99,52,51,52,65,68,70,22,29,26,27,36,310,315,311,306,288,108,93,102,91,108,105,48,60,41,47,48,60,62,79,59,64,63,83,8,16,8,8,-78,-76,-94,-13,-17,0,0,0,-80,-78,-76,-75,-43,0,0,0,0,0,0,0,0,0,0,0,0,0,0,0,0,0]} 1. d4 {[%emt 0:00:02]} d5 {[%emt 0:07:01]} 2. Bf4 {[%emt 0:00:20]} Nf6 {[%emt 0:00:08]} 3. Nf3 {[%emt 0:00:21]} e6 {[%emt 0:00:06]} 4. e3 {[%emt 0:00:07]} c5 {[%emt 0:00:08]} 5. c3 {[%emt 0:00:14]} Nc6 {[%emt 0:04:19]} 6. Nbd2 {[%emt 0:00:10]} Be7 {[%emt 0:00:41]} 7. Bd3 {[%emt 0:00:48]} O-O {[%emt 0:00:15]} 8. Ne5 {[%emt 0:00:34] 8.0-0 injects fresh life into this line.} Nxe5 {[%emt 0:03:36]} 9. dxe5 {[%emt 0:00:19]} Nd7 {[%emt 0:00:33] D02: 1 d4 d5 2 Nf3 sidelines, including 2...Nf6 3 g3 and 2...Nf6 3 Bf4.} 10. Nf3 {[%emt 0:16:12]} c4 {[%emt 0:05:50]} 11. Bc2 {[%emt 0:00:23]} f6 {[%emt 0:03:22]} 12. exf6 {[%emt 0:06:39]} Bxf6 {[%emt 0:00:10]} 13. Bd6 $146 {[%emt 0:01:32]} (13. Qb1 e5 14. Bg3 e4 15. Bd6 Be7 16. Qd1 exf3 17. Qxd5+ Rf7 18. Bxe7 Qxe7 19. gxf3 {0-1 Corredor Castellanos,C (1924)-Fiesco Hoyos,J (1661) COL-ch Superate A blitz 2015 (3.1)}) 13... Be7 {[%emt 0:04:23]} 14. Bxe7 {[%emt 0:01:23]} Qxe7 {[%emt 0:00:02]} 15. e4 {[%emt 0:00:19]} b5 {[%emt 0:13:30]} 16. O-O {[%emt 0:05:18]} Bb7 {[%emt 0:00:04]} 17. e5 {[%emt 0:04:30]} Qe8 {[%emt 0:10:42]} (17... a5 $14) 18. Re1 {[%emt 0:13:27]} (18. Nd4 $16) 18... a5 $14 {[%emt 0:08:37]} 19. Nd4 {[%emt 0:02:36]} Nc5 {[%emt 0:00:12]} 20. Qg4 {[%emt 0:03:14]} b4 {[%emt 0:05:12]} 21. Re3 {[%emt 0:01:56]} Qe7 {[%emt 0:01:46]} (21... g6 $1 $14) 22. f4 {[%emt 0:11:39] White has a king side majority} (22. Rg3 $16) 22... bxc3 {[%emt 0:01:11]} 23. bxc3 {[%emt 0:00:28]} Bc8 {[%emt 0:03:19][%cal Bb7c8,Bc8d7,Bd7a4][%mdl 32]} 24. Rh3 {[%emt 0:12:34] White is much more active.} Nd3 {[%emt 0:00:18]} 25. Bxd3 $40 {[%emt 0:01:10][%mdl 128] White wants a kill.} cxd3 {[%emt 0:00:01]} 26. Rxd3 {[%emt 0:00:02]} Bd7 {[%emt 0:00:09]} 27. g3 {[%emt 0:14:36]} (27. Qf3 $16) 27... Rab8 {[%emt 0:00:24]} 28. Rd2 {[%emt 0:00:51]} Rfc8 {[%emt 0:00:55]} 29. Rc1 {[%emt 0:00:31][%cal Ba1c1,Bc1c2,Bc2b2][%mdl 32]} Rc4 {[%emt 0:00:47]} 30. Qf3 {[%emt 0:01:33]} (30. Kg2 $14) 30... Qa3 $11 {[%emt 0:00:05]} 31. Rcc2 {[%emt 0:00:30]} Ba4 {[%emt 0:03:46]} 32. Nxe6 {[%emt 0:01:18]} Re4 $2 {[%emt 0:01:11][%mdl 8192] [#]} (32... Bxc2 $14 33. Rxc2 h6) 33. Qg4 $1 $18 {[%emt 0:00:51][%csl Ge6][%cal Rg4g7]} Qe7 {[%emt 0:00:05]} (33... g6 34. Ng5 Qc5+ 35. Kg2) 34. Rb2 $1 {[%emt 0:00:16]} (34. Rc1 Bd7 35. Qxg7+ Qxg7 36. Nxg7 Kxg7 $14) 34... Re8 {[%emt 0:04:12] [#]} 35. Qxg7+ $2 {[%emt 0:00:17]} Qxg7 $16 {[%emt 0:00:10]} 36. Nxg7 {[%emt 0:00:03]} Kxg7 {[%emt 0:00:02]} 37. Rxd5 {[%emt 0:00:02]} Rc4 {[%emt 0:03:36]} 38. Rxa5 {[%emt 0:00:30]} ({White should play} 38. Rb7+ $16 Kg8 39. Rxa5) 38... Bc6 $1 $14 {[%emt 0:00:08]} 39. Ra7+ {[%emt 0:00:33]} Kg6 $1 {[%emt 0:00:01]} 40. Rc7 {[%emt 0:00:34]} Kf5 $1 {[%emt 0:00:39]} 41. Rb6 {[%emt 0:00:25]} Re6 {[%emt 0:00:00]} 42. Rf7+ {[%emt 0:01:13]} Kg6 {[%emt 0:00:34]} 43. Rf8 {[%emt 0:00:31]} Kh5 {[%emt 0:00:54]} 44. Rc8 {[%emt 0:00:47]} (44. Rb3 $16) 44... Kg4 {[%emt 0:00:49]} 45. Kf2 {[%emt 0:00:19][%cal Oa2a4]} Rxc3 {[%emt 0:00:32] [#]} 46. h3+ {[%emt 0:00:16]} Kxh3 $17 {[%emt 0:00:21]} 47. a4 {[%emt 0:00:49]} Rc2+ {[%emt 0:00:54]} ({Better is} 47... Rg6 $17 {Hoping for ...Rc2+.} 48. f5 Rc2+ (48... Rgxg3 49. Rbxc6 Rgf3+ 50. Kg1 $11) 49. Ke3 (49. Ke1 Rxg3 50. Kd1 Rh2) 49... Rxg3+ 50. Kd4 Rd2+ (50... Bxa4 51. Rh6+ Kg2 52. Rxc2+ Bxc2 53. f6 $11) 51. Kc4 Bd5+ (51... Bxa4 52. Rh8 $15) 52. Kb5 Rg5 53. Rh6+ Kg4 54. Rxh7 Kxf5 (54... Rxf5 55. Rc5 $17)) 48. Ke3 $11 {[%emt 0:00:01]} Kxg3 {[%emt 0:00:23][%cal Oc6e8]} (48... Bxa4 {simplifies} 49. Rxe6 Rxc8 50. Rh6+ Kxg3 51. Rxh7 Rc3+) 49. Rg8+ {[%emt 0:00:17]} Rg6 {[%emt 0:00:16]} 50. Rc8 {[%emt 0:00:44]} (50. Rxg6+ $11 hxg6 51. a5) 50... Bxa4 {[%emt 0:00:48]} (50... Kh3 {with more complications.} 51. Kd4 Kg4 52. Rf8 Bxa4 53. e6 Rf2) 51. Rxg6+ {[%emt 0:00:43]} hxg6 $17 {[%emt 0:00:07][%mdl 4096] Endgame KRB-KR} 52. Rg8 {[%emt 0:00:27]} Bd7 {[%emt 0:05:14]} 53. Rxg6+ {[%emt 0:00:05] The position is equal.} Bg4 {[%emt 0:00:01]} 54. f5 {[%emt 0:00:34]} Re2+ {[%emt 0:00:52]} 55. Kd4 {[%emt 0:00:01]} Kf4 {[%emt 0:00:01][%csl LRe5,LRf5]} 56. f6 {[%emt 0:00:40][%cal Og6g4] Rxg4+! is the strong threat.} Re4+ {[%emt 0:00:04]} (56... Rxe5 $2 {is the wrong capture.} 57. Rxg4+ Kf5 58. f7 $18 (58. Rg5+ Kxg5 59. Kxe5 Kh6 60. Ke6 Kg5 61. f7 Kf4 62. f8=Q+ Ke4 63. Qb4+ Kd3)) 57. Kd5 {[%emt 0:01:24][%cal Og6g4]} Rxe5+ {[%emt 0:00:05]} 58. Kd6 {[%emt 0:00:04][%cal Og6g4]} Re6+ {[%emt 0:00:57]} 59. Kd5 {[%emt 0:00:00][%cal Og6g4]} Re5+ {[%emt 0:01:01]} 60. Kd6 {[%emt 0:00:02][%cal Og6g4] White threatens Rxg4+! and mate.} Re6+ {[%emt 0:01:08] White really could win this.   Weighted Error Value: White=0.22 (precise) /Black=0.19 (very precise)   Loses game:     	---       	Black=1      Missed win:     	White=1     	---        Mistake:       	White=8     	Black=3      Inaccurate:     	White=1     	Black=3      OK:         	White=18    	Black=12     Best:        	White=7     	Black=5      Strong:       	White=2     	Black=3} 1/2-1/2

[Event "Budapest One Week IM-A 03-2025"]
[Site "Budapest"]
[Date "2025.03.18"]
[Round "2.2"]
[White "Singh, Siddharth"]
[Black "Krizsany, Laszlo"]
[Result "1/2-1/2"]
[Annotator "TA"]
[ECO "B12"]
[WhiteElo "2239"]
[BlackElo "2287"]
[PlyCount "73"]
[EventDate "2025.03.17"]
[EventType "tourn"]
[EventCountry "HUN"]
[SourceTitle "playchess.com"]
[Source "ChessBase"]
[SourceQuality "1"]
[TimeControl "5400+30"]

{[%evp 12,73,8,18,20,33,31,4,41,25,10,6,36,5,3,6,4,5,7,-33,-30,-30,-23,-32,-41,-37,-8,-7,0,0,33,41,41,25,41,33,31,19,44,19,34,19,36,19,61,19,19,19,19,19,19,19,49,19,19,19,43,43,43,0,43,0,0,0]} 1. e4 {[%emt 0:00:02]} c6 {[%emt 0:00:08]} 2. d4 {[%emt 0:00:04]} d5 {[%emt 0:00:05]} 3. e5 {[%emt 0:00:08]} Bf5 {[%emt 0:00:13]} 4. Nf3 {[%emt 0:00:05]} e6 {[%emt 0:00:28]} 5. Be2 {[%emt 0:00:06]} c5 {[%emt 0:03:07]} 6. c3 {[%emt 0:00:07]} Nc6 {[%emt 0:00:42]} 7. O-O {[%emt 0:00:09]} cxd4 {[%emt 0:01:27] B12: Caro-Kann: Advance Variation.} 8. Nxd4 {[%emt 0:00:08]} Nge7 {[%emt 0:02:16]} 9. Bb5 {[%emt 0:00:09]} (9. Nxf5 {simplifies} Nxf5 10. Bd3 Be7 11. Qe2) 9... Bxb1 {[%emt 0:11:37]} 10. Bg5 $146 {[%emt 0:10:57][%cal Od4c6] [#]} (10. Rxb1 a6 11. Bxc6+ Nxc6 12. Nxc6 bxc6 13. Qg4 h5 14. Qe2 Be7 15. b4 Qd7 16. Be3 {1-0 De Boer,E (2346)-Kovchan,A (2491) Groningen op 59th 2023 (8)}) 10... Qd7 {[%emt 0:09:20]} 11. Rxb1 {[%emt 0:07:51]} a6 {[%emt 0:14:51]} 12. Bxe7 {[%emt 0:03:49]} Bxe7 {[%emt 0:00:09]} 13. Qa4 {[%emt 0:00:16][%cal Rd4c6]} Rc8 {[%emt 0:00:13]} 14. Bxc6 {[%emt 0:04:05]} bxc6 {[%emt 0:00:09]} 15. Nf3 {[%emt 0:10:14]} O-O {[%emt 0:03:02]} 16. c4 {[%emt 0:08:47]} Qb7 {[%emt 0:04:36]} 17. Qc2 {[%emt 0:02:36]} a5 {[%emt 0:02:42]} 18. b3 {[%emt 0:07:01]} Qa6 {[%emt 0:01:50]} 19. c5 {[%emt 0:03:18]} Qa7 {[%emt 0:14:57]} 20. Rbc1 {[%emt 0:02:24]} Rb8 {[%emt 0:03:49]} 21. Nd4 {[%emt 0:01:22] Dodges Rb5} Rfc8 {[%emt 0:00:13][%cal Oa5a4]} 22. a3 {[%emt 0:00:33]} Bf8 {[%emt 0:03:16]} 23. f4 {[%emt 0:02:24]} g6 {[%emt 0:00:12]} 24. g4 {[%emt 0:00:33][%cal Bg2g4,Bg4g5][%mdl 32]} Qc7 {[%emt 0:01:34]} 25. g5 {[%emt 0:07:03]} Qe7 {[%emt 0:07:11]} 26. Qd2 {[%emt 0:03:48]} Qa7 {[%emt 0:02:52]} 27. Qc3 {[%emt 0:00:25]} h6 {[%emt 0:03:17]} 28. h4 {[%emt 0:01:19][%cal Oh4h5] White is much more active.} h5 {[%emt 0:00:19]} 29. Qc2 {[%emt 0:00:15]} Kg7 {[%emt 0:00:32]} 30. Kg2 {[%emt 0:00:48]} Be7 {[%emt 0:01:59]} 31. Rf3 {[%emt 0:00:22]} Rc7 {[%emt 0:00:51]} 32. Qc3 {[%emt 0:02:24][%cal Of4f5] [#] and f5! should not be overlooked} (32. f5 {feels hotter.} exf5 33. e6 Rf8 34. exf7 Rxf7 35. Ne6+) 32... Kg8 {[%emt 0:01:09]} 33. Rg3 {[%emt 0:03:16]} Bf8 {[%emt 0:00:17]} 34. Qc2 {[%emt 0:03:49][%cal Od4e6]} Bg7 {[%emt 0:03:07]} 35. Qc3 {[%emt 0:01:48]} Bf8 {[%emt 0:00:48]} 36. Qc2 {[%emt 0:00:07][%cal Od4e6]} Bg7 {[%emt 0:00:06]} 37. Qc3 {[%emt 0:00:09] Weighted Error Value: White=0.12 (very precise) /Black=0.11 (very precise)   Inaccurate:     	White=6     	Black=6      OK:         	White=11    	Black=11     Best:        	---       	Black=2} 1/2-1/2

[Event "Budapest One Week IM-A 03-2025"]
[Site "Budapest"]
[Date "2025.03.18"]
[Round "2.3"]
[White "Ratsma, Midas"]
[Black "Nakahara, Kan"]
[Result "1/2-1/2"]
[Annotator "TA"]
[ECO "C45"]
[WhiteElo "2268"]
[BlackElo "2113"]
[PlyCount "67"]
[EventDate "2025.03.17"]
[EventType "tourn"]
[EventCountry "HUN"]
[SourceTitle "playchess.com"]
[Source "ChessBase"]
[SourceQuality "1"]
[TimeControl "5400+30"]

{[%evp 15,67,17,77,46,49,42,83,39,56,52,73,79,65,67,71,44,44,6,14,14,0,6,2,12,10,0,0,0,0,0,0,0,0,0,17,0,0,0,0,0,0,0,0,-73,0,-70,0,0,0,0,0,0,0,0]} 1. e4 {[%emt 0:00:01]} e5 {[%emt 0:00:06]} 2. Nf3 {[%emt 0:00:09]} Nc6 {[%emt 0:00:05]} 3. d4 {[%emt 0:00:05]} exd4 {[%emt 0:00:14]} 4. Nxd4 {[%emt 0:00:07]} Nf6 {[%emt 0:03:07][%cal Bg8f6,Bf6d5,Bd5b6][%mdl 32]} 5. Nxc6 {[%emt 0:00:07]} bxc6 {[%emt 0:00:18]} 6. e5 {[%emt 0:00:08]} Nd5 {[%emt 0:02:08]} 7. c4 {[%emt 0:00:33]} Nb6 {[%emt 0:00:29]} 8. Bd3 {[%emt 0:01:01]} Bb4+ {[%emt 0:10:03]} (8... g6 $11 {remains equal.}) 9. Nc3 {[%emt 0:03:21] C45: Scotch Game.} O-O {[%emt 0:05:15]} 10. O-O {[%emt 0:07:12]} Re8 $146 {[%emt 0:03:33]} (10... Qe7 11. Bf4 d5 12. Qh5 g6 13. Qh6 Ba6 14. Rae1 Rfe8 15. Re3 Qf8 16. Qxf8+ Kxf8 17. cxd5 Bxc3 18. Bxa6 {½-½ Barbosa,E (2449)-Paveto,K (2437) Florianopolis Masters 2015 (1)}) 11. Re1 {[%emt 0:06:52] White is better.} d5 {[%emt 0:14:39]} 12. exd6 {[%emt 0:02:46]} cxd6 {[%emt 0:12:28] [#]} 13. Bg5 $1 {[%emt 0:07:09]} Rxe1+ {[%emt 0:03:29]} 14. Qxe1 {[%emt 0:00:06]} f6 {[%emt 0:01:19]} 15. Qe4 {[%emt 0:07:56] White is more active.} g6 $1 {[%emt 0:00:44]} 16. Bh4 {[%emt 0:02:31]} Bxc3 {[%emt 0:04:38]} 17. bxc3 {[%emt 0:00:12]} Bf5 {[%emt 0:00:16]} 18. Qf3 {[%emt 0:01:26]} Bxd3 {[%emt 0:00:07]} 19. Qxd3 {[%emt 0:00:10]} Qe7 {[%emt 0:02:48]} 20. f3 {[%emt 0:05:10]} Qe6 {[%emt 0:05:13]} 21. c5 {[%emt 0:20:46]} dxc5 {[%emt 0:02:25]} 22. Re1 {[%emt 0:02:02]} Qxa2 {[%emt 0:04:49]} 23. Bxf6 {[%emt 0:04:25]} Qf7 {[%emt 0:05:35]} 24. Qd6 {[%emt 0:05:23][%csl LRc5,LRc6][%cal Oe1e7] [#]} Re8 {[%emt 0:03:21]} 25. Re7 {[%emt 0:05:00]} Rxe7 {[%emt 0:01:31]} 26. Bxe7 $11 {[%emt 0:00:05][%mdl 4096] Endgame KQB-KQN. Black is a pawn up.} Qd5 {[%emt 0:07:03]} 27. Qb8+ {[%emt 0:03:43]} (27. Qxc5 $2 Qd1+ 28. Kf2 Qd2+ 29. Kg3 Nd5 $19) 27... Kf7 {[%emt 0:00:07]} 28. Qf8+ {[%emt 0:00:34]} (28. Qxa7 $2 {perishes.} Nc8 29. Qxc5 Qd1+ (29... Nxe7 $2 30. Qe3 $19) 30. Kf2 Qd2+ (30... Nxe7 $2 31. h3 $19) 31. Kg3 Nxe7 $19) 28... Ke6 {[%emt 0:00:02]} 29. Qf6+ {[%emt 0:02:01]} Kd7 {[%emt 0:00:01] aiming for ...Qe6.} 30. Qg7 {[%emt 0:00:54]} (30. Qf8 $1 $11) 30... Qd1+ {[%emt 0:00:48]} ({Black should play} 30... Kc8 $1 $15) 31. Kf2 {[%emt 0:00:06] The position is equal.} Qd2+ {[%emt 0:00:14]} 32. Kf1 {[%emt 0:01:02] Strongly threatening Bg5+.} Qd3+ {[%emt 0:01:07]} 33. Kf2 {[%emt 0:00:27]} Qd2+ {[%emt 0:01:08]} 34. Kf1 {[%emt 0:00:05] Weighted Error Value: White=0.22 (precise) /Black=0.12 (very precise)   Mistake:       	White=1     	Black=1      Inaccurate:     	White=3     	Black=2      OK:         	White=7     	Black=14     Best:        	White=3     	Black=1      Strong:       	---       	Black=1} 1/2-1/2

[Event "Budapest One Week IM-A 03-2025"]
[Site "Budapest"]
[Date "2025.03.18"]
[Round "2.4"]
[White "Foldes, Marton Gabor"]
[Black "Tscheuschner, Georg"]
[Result "1-0"]
[Annotator "TA"]
[ECO "B95"]
[WhiteElo "2332"]
[BlackElo "2236"]
[PlyCount "59"]
[EventDate "2025.03.17"]
[EventType "tourn"]
[EventCountry "HUN"]
[SourceTitle "playchess.com"]
[Source "ChessBase"]
[SourceQuality "1"]
[TimeControl "5400+30"]

{[%evp 20,58,-12,-23,0,-77,-64,-67,-58,-56,-64,-91,-109,-109,-66,-61,176,0,9,0,0,0,6,0,0,0,281,280,478,450,647,0,0,0,0,0,29997,29998,29998,29999,29999]} 1. e4 {[%emt 0:00:02]} c5 {[%emt 0:00:08]} 2. Nf3 {[%emt 0:00:06]} d6 {[%emt 0:00:06]} 3. d4 {[%emt 0:00:14]} cxd4 {[%emt 0:00:05]} 4. Nxd4 {[%emt 0:00:05]} Nf6 {[%emt 0:00:05]} 5. Nc3 {[%emt 0:00:05]} a6 {[%emt 0:00:45]} 6. Bg5 {[%emt 0:00:14]} e6 {[%emt 0:00:16]} 7. Qf3 {[%emt 0:00:12]} Nbd7 {[%emt 0:01:48]} 8. O-O-O {[%emt 0:00:21]} Qc7 {[%emt 0:02:15]} 9. Qg3 {[%emt 0:00:13]} b5 {[%emt 0:02:47]} 10. Bxb5 {[%emt 0:03:14]} axb5 {[%emt 0:00:03]} 11. Ndxb5 {[%emt 0:00:10]} Qb7 {[%emt 0:02:59] B95: Sicilian Najdorf: 6 Bg5 e6, unusual White 7th moves.} (11... Qb8 {simplifies} 12. Nxd6+ Bxd6 13. Qxd6 Qxd6 14. Rxd6 h6) 12. Nxd6+ {[%emt 0:35:38]} (12. Rxd6 $11 Ra5 (12... Nxe4 $2 13. Rxd7 Bxd7 14. Nc7+ $18) 13. Bxf6 gxf6 (13... Nxf6 14. Rhd1 $14) 14. a4) 12... Bxd6 $17 {[%emt 0:00:08]} 13. Qxd6 {[%emt 0:00:22]} Ra6 {[%emt 0:06:52] Black is slightly better. Prevents e5} (13... Nxe4 14. Qe7#) 14. Qg3 {[%emt 0:02:30]} O-O {[%emt 0:22:42]} (14... Nxe4 15. Nxe4 Qxe4 16. Rxd7 Kxd7 17. Rd1+ Kc6 18. Qb8) 15. f3 $146 {[%emt 0:23:31][%cal Od1d7]} (15. Rhe1 e5 16. Re3 Re8 17. f3 h6 18. Bxf6 Nxf6 19. Red3 Qc7 20. Nb5 Qb6 21. Na3 {0-1 Todorovic,G (2406)-Sturt,R (2490) Belgrade Spring GM1 2021 (7)}) 15... e5 {[%emt 0:04:42]} 16. h4 {[%emt 0:02:24] Black has space advantage and is better} Rb6 {[%emt 0:13:06]} 17. h5 $1 {[%emt 0:05:38]} Rxb2 $2 {[%emt 0:06:58]} (17... Re8 $15 18. b3 Qc7) 18. Bh6 $2 {[%emt 0:01:32]} ({White has to play} 18. Bxf6 $1 $18 Nxf6 19. h6) 18... g6 $11 {[%emt 0:01:16][%cal Ob7b4] Threatens to win with ...Qb4!.} 19. hxg6 {[%emt 0:00:47]} fxg6 {[%emt 0:00:51]} 20. Bxf8 $40 {[%emt 0:00:19][%mdl 128] Black needs to defend precisely.} Kxf8 {[%emt 0:05:55]} 21. f4 {[%emt 0:17:13]} Nxe4 {[%emt 0:13:03]} 22. Qh4 {[%emt 0:02:50] The board is on fire.} Qc7 {[%emt 0:03:09][%mdl 8192] Prevents Qd8+} 23. Rd3 $1 $18 {[%emt 0:00:19]} (23. Nxe4 $2 Qxc2#) (23. Kxb2 Qxc3+ 24. Kb1 Qb4+ 25. Ka1 Qc3+ 26. Kb1 Qb4+ 27. Ka1 Qc3+ 28. Kb1 $11) 23... Ba6 $2 {[%emt 0:05:50] [#]} (23... Nxc3 {might work better.} 24. Kxb2 Na4+ 25. Ka1 Ba6) 24. Rf3 $1 {[%emt 0:02:08]} (24. Nxe4 $2 Qxc2#) ({Avoid the trap} 24. Rxd7 $2 Rxc2+ 25. Kxc2 Qxc3+ 26. Kd1 (26. Kb1 {is a self mate.} Bd3+ 27. Rxd3 Qxd3+ 28. Kb2 Qc3+ 29. Kb1 Nd2#) 26... Qa1+ 27. Kc2 Qxa2+ 28. Kc1 Qa1+ (28... Qxg2 29. Qd8#) 29. Kc2 Qa4+ 30. Kb2 Qxd7 $19) 24... Be2 {[%emt 0:02:52] [#]} (24... Nxc3 $142 25. fxe5+ (25. Kxb2 Qb6+ 26. Kxc3 Qd4+ 27. Kb3 Bc4+ 28. Ka3 Qa7+ 29. Kb2 Qxa2+ 30. Kc3 Ke8 $18) 25... Ke8 26. Kxb2 Qb6+ 27. Kxc3 Bb7) 25. Re3 $2 {[%emt 0:01:18]} (25. Nxe2 $2 Qxc2#) (25. Kxb2 Bxf3 26. Nd5 Qb7+ 27. Ka1 Qxd5 $11) (25. Qh6+ $1 $18 Ke8 26. Qxh7) 25... Nxc3 $11 {[%emt 0:01:23]} 26. Rxc3 {[%emt 0:01:29]} Qxc3 {[%emt 0:00:29][%csl Gb2][%cal Rc3c2]} 27. Qd8+ {[%emt 0:00:02]} Kf7 $4 {[%emt 0:00:28][%mdl 8192]} (27... Kg7 $11 28. Qxd7+ Kf6 29. fxe5+ Qxe5 30. Qd8+ Kf5 31. Qf8+ Kg4 32. Qc8+ Kg5 (32... Kg3 33. Qh3+ Kf2 34. Qh4+ Qg3 35. Qd4+ Qe3+ 36. Qxe3+ Kxe3 37. Kxb2 $18) 33. Qd8+ Kf5) 28. Rxh7+ {[%emt 0:00:39] White mates.} Ke6 {[%emt 0:00:07]} 29. Qxd7+ {[%emt 0:00:07]} Kf6 {[%emt 0:00:07]} 30. Rf7# {[%emt 0:00:18] Weighted Error Value: White=0.31/Black=1.11  Loses game:     	---       	Black=3      Missed win:     	White=2     	---        Mistake:       	White=1     	Black=2      Inaccurate:     	White=1     	Black=1      OK:         	White=3     	Black=2      Best:        	White=2     	Black=4      Strong:       	White=3     	---} 1-0

[Event "Budapest One Week IM-A 03-2025"]
[Site "Budapest"]
[Date "2025.03.18"]
[Round "3.1"]
[White "Rydstrom, Tom"]
[Black "Turzo, Attila"]
[Result "1/2-1/2"]
[Annotator "TA"]
[ECO "C54"]
[WhiteElo "2301"]
[BlackElo "2272"]
[PlyCount "81"]
[EventDate "2025.03.17"]
[EventType "tourn"]
[EventCountry "HUN"]
[SourceTitle "playchess.com"]
[Source "ChessBase"]
[SourceQuality "1"]
[TimeControl "5400+30"]

{[%evp 23,81,5,13,-19,9,0,17,-17,0,-5,0,0,0,-5,-13,-55,-60,-68,-56,-43,-40,-33,-26,-36,-41,-45,-35,-28,-42,-154,0,0,0,0,0,-49,-51,-42,0,0,0,0,0,0,0,0,0,0,0,0,0,0,0,0,0,0,58,-2,-2,-2]} 1. e4 {[%emt 0:03:35]} e5 {[%emt 0:00:11]} 2. Nf3 {[%emt 0:00:11]} Nc6 {[%emt 0:00:10]} 3. Bc4 {[%emt 0:00:17]} Bc5 {[%emt 0:00:08]} 4. c3 {[%emt 0:00:14]} Nf6 {[%emt 0:00:14]} 5. d3 {[%emt 0:00:45]} a6 {[%emt 0:02:51]} 6. Nbd2 {[%emt 0:00:21]} Ba7 {[%emt 0:00:28]} 7. O-O {[%emt 0:01:09]} O-O {[%emt 0:00:21]} 8. Re1 {[%emt 0:01:15]} d6 {[%emt 0:00:59]} 9. Bb3 {[%emt 0:00:07]} Ng4 {[%emt 0:04:10]} 10. Re2 {[%emt 0:01:05]} Kh8 {[%emt 0:00:13]} 11. h3 {[%emt 0:04:02]} Nh6 {[%emt 0:00:07]} 12. Nf1 {[%emt 0:04:09][%cal Bd2f1,Bf1g3,Bg3e4][%mdl 32]} f5 {[%emt 0:00:07]} 13. exf5 {[%emt 0:38:38] C54: Giuoco Piano: 4 c3 Nf6, main lines with 5 d4 and 5 d3.} Bxf5 {[%emt 0:01:06]} 14. Re1 {[%emt 0:00:42]} Qf6 {[%emt 0:05:01][%cal Of5h3]} 15. Bd5 $146 {[%emt 0:02:58]} (15. Ng3 Qg6 16. Nxf5 Nxf5 17. Re4 h6 18. a4 Rf6 19. a5 Raf8 20. Rg4 Qh5 21. Raa4 Nfe7 22. Rg3 Nf5 23. Rgg4 Nfe7 24. Rg3 Nf5 {½-½ Fruebing,S (2343)-Sorokin,M (2517) EU-ch 8th Dresden 2007 (6)}) 15... Rae8 {[%emt 0:01:03]} 16. Ng3 {[%emt 0:02:08][%cal Od3d4]} Bc8 {[%emt 0:03:56]} 17. Ne4 {[%emt 0:11:51]} Qd8 {[%emt 0:05:30]} 18. Bg5 {[%emt 0:00:14]} Qd7 {[%emt 0:01:17]} 19. b4 {[%emt 0:06:02]} (19. Be3 Bxe3 20. fxe3 Ne7 21. Bb3) 19... Ne7 {[%emt 0:03:06]} 20. Bb3 {[%emt 0:00:10]} Ng6 {[%emt 0:00:31]} 21. d4 {[%emt 0:04:26]} exd4 {[%emt 0:21:52]} 22. cxd4 {[%emt 0:00:32]} Nf5 $1 {[%emt 0:04:17]} 23. Qd3 {[%emt 0:00:53]} h6 {[%emt 0:02:13]} 24. Bd2 {[%emt 0:00:19]} Nfh4 {[%emt 0:03:30]} (24... Qb5 {simplifies} 25. Qxb5 axb5 26. Rac1 Bb6) 25. Nxh4 {[%emt 0:02:00] Successful Defense White} Nxh4 {[%emt 0:01:08]} 26. Bc2 {[%emt 0:05:02]} ({Better is} 26. Nc3 $15) 26... Qf5 $2 {[%emt 0:03:05]} (26... Qf7 $17 {And now ...d5 would win.} 27. Kh1 Bf5) 27. Qg3 $11 {[%emt 0:01:39]} Bxd4 {[%emt 0:03:31][%cal Oe8e4] [#]} 28. Qxh4 {[%emt 0:01:19][%cal Od2h6] Strongly threatening Bxh6!.} d5 {[%emt 0:04:16]} 29. Rad1 {[%emt 0:04:47]} (29. Bc3 $11 Rxe4 30. Bxe4 Bxf2+ (30... Qxf2+ 31. Qxf2 Bxf2+ 32. Kh2 $11) 31. Kh2 Bxh4 32. Bxf5 Bxf5 (32... Bxe1 33. Rxe1 Bxf5 34. Re7 $16) 33. Rf1) 29... Rxe4 $15 {[%emt 0:07:58]} 30. Bxe4 Qxf2+ {[%emt 0:02:47] Black attacks} (30... Bxf2+ {is more complex.} 31. Kh2 dxe4 32. Qxe4 Bxe1 33. Rxe1 Rf7) 31. Qxf2 {[%emt 0:00:05]} Bxf2+ {[%emt 0:00:06]} 32. Kh2 {[%emt 0:00:59]} Bxe1 {[%emt 0:00:04]} (32... dxe4 $2 33. Rxe4 c5 34. Bc3 cxb4 35. Bxb4 $18) 33. Rxe1 {[%emt 0:00:16]} dxe4 {[%emt 0:00:09]} 34. Rxe4 $11 {[%emt 0:00:04][%mdl 4096] Endgame KRB-KRB. Black is a pawn up.} Rd8 {[%emt 0:10:49]} 35. Bc3 {[%emt 0:00:01]} Kh7 {[%emt 0:00:10]} 36. Re7 {[%emt 0:00:12][%csl LRc7,LRg7]} Rd7 {[%emt 0:00:09]} 37. Re8 {[%emt 0:01:17]} Rd3 $1 {[%emt 0:00:06]} 38. Ba1 {[%emt 0:01:13]} Rd1 {[%emt 0:06:56]} 39. Be5 {[%emt 0:00:37]} Bf5 {[%emt 0:00:26]} (39... Rd5 $11) 40. Re7 {[%emt 0:00:08]} (40. g4 $1 $14 Bb1 41. Re7) 40... Rd7 {[%emt 0:00:08]} 41. Rxd7 {Weighted Error Value: White=0.18 (very precise) /Black=0.18 (very precise)   Mistake:       	White=3     	Black=2      Inaccurate:     	White=2     	Black=2      OK:         	White=13    	Black=8      Best:        	White=1     	Black=4      Strong:       	---       	Black=2} 1/2-1/2